bitfinex-derivatives/quotes_SOLF0:USTF0_20241027
["timestamp","ask_amount","ask_price","bid_price","bid_amount"]
[1730029016319,4.14,174.61,174.5,2.6197]
[1730029023025,6.6263,174.61,174.5,0.2]
[1730029024218,0.85870173,174.6,174.5,0.2]
[1730029024424,3.74775916,174.6,174.5,0.2]
[1730029024625,2.88905743,174.6,174.5,0.2]
[1730029024824,92.24240854,174.61,174.5,0.2]
[1730029025015,0.85872327,174.6,174.5,0.2]
[1730029025223,3.76183867,174.6,174.5,0.2]
[1730029025421,2.9031154,174.6,174.5,0.2]
[1730029025619,92.24240854,174.61,174.5,0.2]
[1730029025818,0.85872327,174.6,174.5,0.2]
[1730029026025,4.14,174.59,174.5,0.2]
[1730029026417,2.83770278,174.6,174.5,0.2]
[1730029026617,4.14,174.59,174.5,0.2]
[1730029027229,4.14,174.58,174.5,0.2]
[1730029031631,6.94938441,174.58,174.5,0.2]
[1730029034330,4.14,174.57,174.5,0.2]
[1730029034726,4.14,174.56,174.5,0.2]
[1730029035431,88.10240854,174.61,174.5,0.2]
[1730029035734,4.14,174.6,174.5,0.2]
[1730029036034,7.03123142,174.6,174.5,0.2]
[1730029039833,0.85877646,174.59,174.5,0.2]
[1730029040231,7.03123142,174.6,174.5,0.2]
[1730029040740,4.14,174.59,174.5,0.2]
[1730029041436,7.06021449,174.59,174.5,0.2]
[1730029052536,4.14,174.58,174.5,0.2]
[1730029058550,59.88,174.58,174.5,0.2]
[1730029074274,4.14,174.57,174.5,0.2]
[1730029076370,55.74,174.58,174.5,0.2]
[1730029076568,4.14,174.57,174.5,0.2]
[1730029077379,55.74,174.58,174.5,0.2]
[1730029077570,4.14,174.57,174.5,0.2]
[1730029077967,4.14,174.56,174.5,0.2]
[1730029083575,55.74,174.58,174.5,0.2]
[1730029083774,4.12,174.55,174.5,0.2]
[1730029093983,4.12,174.54,174.5,0.2]
[1730029116409,1.2027,174.57,174.5,0.2]
[1730029116708,4.12,174.54,174.5,0.2]
[1730029126818,4.12,174.54,174.42,2.4592]
[1730029127116,2.3439,174.53,174.42,2.4592]
[1730029129522,2.3439,174.53,174.36,4.12]
[1730029132020,1.1849,174.52,174.36,4.12]
[1730029132411,1.1849,174.52,174.35,3.6554]
[1730029132722,2.82126094,174.51,174.35,7.7754]
[1730029132918,4.12,174.5,174.35,7.7754]
[1730029144628,4.12,174.49,174.35,7.7754]
[1730029147134,1.1849,174.52,174.35,7.7754]
[1730029147323,4.12,174.51,174.35,7.7754]
[1730029153025,4.12,174.51,174.36,4.12]
[1730029156434,4.12,174.51,174.35,3.6554]
[1730029156635,4.12,174.51,174.36,4.12]
[1730029159940,1.1849,174.52,174.36,4.12]
[1730029160142,4.12,174.51,174.36,4.12]
[1730029173048,4.12,174.51,174.35,3.6554]
[1730029173255,4.12,174.51,174.36,4.12]
[1730029173440,2.92817852,174.5,174.36,4.12]
[1730029174049,2.92817852,174.5,174.35,3.6554]
[1730029175459,4.12,174.51,174.35,3.6554]
[1730029177549,4.12,174.5,174.35,3.6554]
[1730029184658,4.12,174.49,174.36,4.12]
[1730029188959,4.12,174.49,174.35,3.6554]
[1730029189160,4.12,174.49,174.36,4.12]
[1730029190255,1.1849,174.52,174.36,4.12]
[1730029190450,4.12,174.51,174.36,4.12]
[1730029200365,12.48322217,174.55,174.36,4.12]
[1730029200568,4.12,174.54,174.36,4.12]
[1730029200871,4.12,174.53,174.37,1.05439389]
[1730029203275,4.12,174.53,174.36,4.12]
[1730029203471,4.12,174.53,174.37,1.0543472]
[1730029203871,4.12,174.53,174.38,1.05433402]
[1730029204174,4.12,174.53,174.36,4.12]
[1730029204467,4.12,174.53,174.37,1.05433402]
[1730029204667,4.12,174.52,174.37,1.05433402]
[1730029205672,4.12,174.53,174.37,1.05433402]
[1730029207381,4.12,174.53,174.38,1.05425009]
[1730029207583,4.12,174.53,174.39,1.05425009]
[1730029207881,4.12,174.53,174.4,4.12]
[1730029208080,4.12,174.53,174.41,10.85289567]
[1730029208287,4.12,174.53,174.42,4.12]
[1730029213793,4.12,174.54,174.42,4.12]
[1730029216091,4.12,174.57,174.42,4.12]
[1730029223489,4.12,174.57,174.41,3.8102]
[1730029223689,4.12,174.57,174.42,4.12]
[1730029228491,4.12,174.57,174.39,4.12]
[1730029228694,4.12,174.57,174.38,4.12]
[1730029232101,4.12,174.57,174.37,4.12]
[1730029234701,4.12,174.57,174.36,4.12]
[1730029237407,55.74,174.56,174.36,4.12]
[1730029244704,55.74,174.56,174.34,3.737]
[1730029244908,55.74,174.56,174.35,4.12]
[1730029246605,13.3061062,174.55,174.35,4.12]
[1730029246806,12.4470672,174.55,174.34,3.737]
[1730029247003,1.1036,174.54,174.34,7.857]
[1730029247198,4.12,174.53,174.34,6.5913]
[1730029247405,6.652,174.53,174.34,6.5913]
[1730029249004,6.652,174.53,174.34,2.4713]
[1730029251908,6.652,174.53,174.34,1.2748]
[1730029252115,6.652,174.53,174.33,4.12]
[1730029253320,6.652,174.53,174.31,1.2686]
[1730029253321,0.85918947,174.52,174.31,1.2686]
[1730029254519,0.85918947,174.52,174.26,4.12]
[1730029254708,17.21,174.51,174.27,5.3143]
[1730029254908,0.85918947,174.5,174.27,5.3143]
[1730029255109,4.12,174.49,174.27,5.3143]
[1730029255714,1.1039,174.48,174.27,5.3143]
[1730029256211,2.4584,174.47,174.27,5.3143]
[1730029261118,2.4584,174.47,174.28,1.2683]
[1730029264215,4.12,174.46,174.29,1.167]
[1730029272725,4.12,174.45,174.29,1.167]
[1730029285747,4.12,174.44,174.29,1.167]
[1730029287446,2.4584,174.47,174.29,1.167]
[1730029287739,4.12,174.46,174.29,1.167]
[1730029291938,4.12,174.46,174.29,5.287]
[1730029294453,59.9,174.46,174.29,5.287]
[1730029299453,4.12,174.45,174.29,5.287]
[1730029301852,4.12,174.45,174.29,1.167]
[1730029302056,4.12,174.45,174.3,4.12]
[1730029308559,4.12,174.45,174.29,1.167]
[1730029310459,55.78,174.46,174.29,1.167]
[1730029310656,4.12,174.45,174.29,1.167]
[1730029312064,55.78,174.46,174.29,1.167]
[1730029312264,4.12,174.45,174.29,1.167]
[1730029312962,4.12,174.44,174.29,1.167]
[1730029317969,2.4584,174.47,174.29,1.167]
[1730029318269,4.12,174.46,174.29,1.167]
[1730029319168,4.12,174.46,174.3,1.05486309]
[1730029319562,4.12,174.46,174.29,1.167]
[1730029321060,4.12,174.46,174.3,4.12]
[1730029325874,4.12,174.46,174.29,1.167]
[1730029326079,4.12,174.46,174.29,5.287]
[1730029329781,4.12,174.45,174.29,5.287]
[1730029335474,4.12,174.44,174.29,5.287]
[1730029335780,4.12,174.43,174.29,5.287]
[1730029336177,4.12,174.43,174.3,1.05484017]
[1730029336386,1.1922,174.47,174.3,1.05484017]
[1730029336578,4.12,174.46,174.3,1.05484017]
[1730029337483,4.12,174.46,174.31,1.05482509]
[1730029337673,4.12,174.46,174.29,5.287]
[1730029337879,4.12,174.46,174.3,1.05481733]
[1730029339080,55.78,174.5,174.3,1.05481733]
[1730029339282,4.12,174.49,174.3,1.05481733]
[1730029340888,4.12,174.49,174.31,1.05478163]
[1730029341187,4.12,174.49,174.32,1.05478163]
[1730029341386,4.12,174.49,174.33,4.12]
[1730029341693,4.12,174.49,174.34,2.4352]
[1730029341993,4.12,174.49,174.35,2.8037158]
[1730029342189,4.12,174.49,174.35,4.0283158]
[1730029342788,4.12,174.49,174.35,1.2246]
[1730029348398,4.12,174.49,174.35,4.16581153]
[1730029352497,4.12,174.49,174.36,4.12]
[1730029361303,4.12,174.48,174.36,4.12]
[1730029370116,55.78,174.5,174.36,4.12]
[1730029370315,4.12,174.49,174.36,4.12]
[1730029378226,1.1953,174.48,174.36,4.12]
[1730029378823,1.1953,174.48,174.35,1.2246]
[1730029379126,2.3163,174.47,174.36,4.12]
[1730029379327,2.3163,174.47,174.34,2.4352]
[1730029379522,2.3163,174.47,174.34,6.5552]
[1730029379721,2.3163,174.47,174.3,127.81230699]
[1730029380025,2.3163,174.47,174.31,4.12]
[1730029381228,2.3163,174.47,174.32,4.12]
[1730029382927,2.3163,174.47,174.3,131.93230699]
[1730029383632,2.3163,174.47,174.2,10.04709456]
[1730029383830,2.3163,174.47,174.21,7.58456946]
[1730029384036,2.3163,174.47,174.22,1.05511468]
[1730029386433,2.3163,174.47,174.23,4.1]
[1730029387435,0.85951799,174.46,174.23,4.1]
[1730029387634,4.1,174.45,174.23,4.1]
[1730029388130,4.1,174.45,174.24,1.05521344]
[1730029395232,4.1,174.45,174.23,4.1]
[1730029395434,4.1,174.45,174.24,1.05519933]
[1730029395835,4.1,174.45,174.23,4.1]
[1730029396139,4.1,174.45,174.24,1.05520118]
[1730029399331,4.1,174.45,174.23,4.1]
[1730029399532,4.1,174.45,174.24,1.05517957]
[1730029400337,87.99878495,174.47,174.24,1.05517957]
[1730029400635,4.12,174.46,174.24,1.05517957]
[1730029401538,4.12,174.46,174.23,4.1]
[1730029401735,4.12,174.46,174.24,1.05508977]
[1730029401935,87.99878495,174.47,174.24,1.05508977]
[1730029402443,4.12,174.46,174.24,1.05508977]
[1730029403333,4.12,174.45,174.23,4.1]
[1730029403534,4.12,174.45,174.25,1.0]
[1730029403742,4.12,174.45,174.26,1.05494214]
[1730029403928,4.12,174.45,174.27,4.12]
[1730029404237,4.12,174.45,174.28,2.29974214]
[1730029404441,4.12,174.45,174.28,2.5213]
[1730029407545,4.12,174.45,174.29,4.12]
[1730029408245,4.12,174.45,174.28,2.5213]
[1730029408441,4.12,174.45,174.29,4.12]
[1730029409345,4.12,174.45,174.4,75.0]
[1730029413250,4.12,174.45,174.4,73.1811]
[1730029427452,0.8596667,174.44,174.4,73.1811]
[1730029428567,4.12,174.45,174.4,73.1811]
[1730029429062,0.85966683,174.44,174.4,73.1811]
[1730029431461,0.85973595,174.43,174.4,73.1811]
[1730029431662,21.34,174.45,174.4,73.1811]
[1730029431857,0.85975341,174.44,174.4,73.1811]
[1730029432056,21.34,174.45,174.4,73.1811]
[1730029432261,0.85975341,174.44,174.4,73.1811]
[1730029435467,21.34,174.45,174.4,73.1811]
[1730029435669,0.85975304,174.44,174.4,73.1811]
[1730029439475,55.8,174.43,174.4,73.1811]
[1730029439680,0.85980704,174.42,174.4,73.1811]
[1730029439873,4.1,174.41,174.4,73.1811]
[1730029440073,9.31628462,174.41,174.4,73.1811]
[1730029442271,6.4663,174.41,174.4,69.58324202]
[1730029442785,9.36051755,174.41,174.4,69.58324202]
[1730029443081,7.32613551,174.41,174.4,67.58324202]
[1730029443473,10.22408679,174.41,174.4,67.58324202]
[1730029443677,22.17983551,174.41,174.27,0.552]
[1730029443882,21.32,174.41,174.26,1.2538]
[1730029444280,4.1,174.4,174.26,1.2538]
[1730029444984,2.80920332,174.39,174.26,1.2538]
[1730029447677,4.1,174.38,174.26,1.2538]
[1730029448989,4.1,174.38,174.27,2.3883]
[1730029462404,4.1,174.37,174.27,2.3883]
[1730029491029,4.1,174.36,174.27,2.3883]
[1730029495032,4.1,174.36,174.27,1.175]
[1730029505635,12.48845567,174.39,174.27,1.175]
[1730029505840,2.3528,174.47,174.28,1.1659]
[1730029506043,4.1,174.46,174.28,1.1659]
[1730029509030,5.18350645,174.47,174.28,1.1659]
[1730029509232,4.1,174.46,174.28,1.1659]
[1730029510949,4.1,174.46,174.29,4.1]
[1730029512542,4.1,174.46,174.3,4.1]
[1730029513250,4.1,174.46,174.28,1.1659]
[1730029513541,0.85967134,174.45,174.28,1.1659]
[1730029513944,4.1,174.46,174.28,1.1659]
[1730029514138,0.85966322,174.45,174.28,1.1659]
[1730029518239,4.1,174.46,174.28,1.1659]
[1730029522545,0.85964437,174.45,174.27,5.275]
[1730029522751,0.85964437,174.45,174.27,1.175]
[1730029524857,0.85972933,174.44,174.27,1.175]
[1730029525054,4.1,174.46,174.27,1.175]
[1730029525455,0.85970788,174.45,174.27,1.175]
[1730029526262,4.1,174.46,174.27,1.175]
[1730029526446,0.85966895,174.45,174.27,1.175]
[1730029526647,4.1,174.44,174.27,2.3316]
[1730029526854,4.1,174.44,174.28,4.1]
[1730029529259,4.1,174.44,174.27,2.3316]
[1730029533562,59.9,174.44,174.27,2.3316]
[1730029534866,55.8,174.44,174.27,2.3316]
[1730029535167,4.1,174.43,174.27,5.22810289]
[1730029535369,4.1,174.43,174.27,2.3316]
[1730029536563,55.8,174.44,174.27,5.16387411]
[1730029536768,4.1,174.43,174.27,2.3316]
[1730029536968,4.1,174.43,174.27,5.24339366]
[1730029538764,4.1,174.43,174.28,1.05503184]
[1730029539076,2.3528,174.47,174.29,4.1]
[1730029539377,4.1,174.46,174.29,4.1]
[1730029548494,4.1,174.46,174.28,127.83424405]
[1730029548788,4.1,174.46,174.29,4.1]
[1730029554788,4.1,174.45,174.29,4.1]
[1730029559393,4.1,174.45,174.27,2.3316]
[1730029560487,0.8597202,174.44,174.27,2.3316]
[1730029560694,4.1,174.45,174.27,2.3316]
[1730029560995,0.85973862,174.44,174.27,2.3316]
[1730029561389,4.1,174.45,174.27,2.3316]
[1730029561588,0.85971513,174.44,174.27,6.4316]
[1730029562490,4.1,174.43,174.27,6.4316]
[1730029563089,4.1,174.42,174.27,9.28520012]
[1730029563294,4.1,174.41,174.27,9.28520012]
[1730029563497,4.1,174.4,174.27,9.28520012]
[1730029563697,4.1,174.39,174.27,9.28520012]
[1730029566500,4.1,174.39,174.27,6.4316]
[1730029573697,4.1,174.39,174.27,2.3316]
[1730029573902,2.4786,174.38,174.27,2.3316]
[1730029577600,2.4786,174.38,174.26,1.2538]
[1730029579099,2.4786,174.38,174.25,4.1]
[1730029579798,2.4786,174.38,174.24,4.1]
[1730029579994,2.4786,174.38,174.2,1.2197]
[1730029580197,2.4786,174.38,174.21,4.1]
[1730029581807,4.1,174.37,174.21,4.1]
[1730029592113,4.1,174.37,174.2,1.2197]
[1730029592417,4.1,174.37,174.21,4.1]
[1730029602623,4.1,174.37,174.2,1.2197]
[1730029604425,4.1,174.37,174.16,2.83932177]
[1730029604618,0.86017019,174.36,174.15,4.1]
[1730029606019,0.86017019,174.36,174.15,5.2915]
[1730029606525,0.86017019,174.36,174.16,1.1579]
[1730029607417,0.86024413,174.35,174.16,1.1579]
[1730029607619,4.1,174.37,174.16,1.1579]
[1730029607828,0.86024413,174.36,174.16,1.1579]
[1730029611425,0.86024438,174.35,174.16,1.1579]
[1730029611621,4.1,174.37,174.16,1.1579]
[1730029611822,0.86024436,174.36,174.16,1.1579]
[1730029612023,0.86034566,174.35,174.16,1.1579]
[1730029612225,0.86034566,174.34,174.16,1.1579]
[1730029612521,4.1,174.33,174.16,1.1579]
[1730029612720,1.1757,174.32,174.16,1.1579]
[1730029612917,2.4367,174.32,174.16,1.1579]
[1730029613122,58.2567,174.32,174.16,1.1579]
[1730029616122,58.2567,174.32,174.15,2.3927]
[1730029617326,0.86050553,174.31,174.15,2.3927]
[1730029617519,0.86050553,174.31,174.15,1.2012]
[1730029617717,0.86050553,174.31,174.12,1.1745]
[1730029619314,0.86059213,174.3,174.1,1.1647]
[1730029619520,4.96059213,174.29,174.1,1.1647]
[1730029619716,4.1,174.29,174.1,1.1647]
[1730029620122,0.86061991,174.28,174.1,1.1647]
[1730029621926,0.86070588,174.27,174.1,1.1647]
[1730029622124,6.91031201,174.29,174.1,1.1647]
[1730029622328,2.4462,174.26,174.1,1.1647]
[1730029622532,4.1,174.25,174.1,1.1647]
[1730029624730,4.1,174.24,174.1,1.1647]
[1730029625219,4.1,174.23,174.1,1.1647]
[1730029625928,4.1,174.22,174.1,1.1647]
[1730029632133,4.1,174.22,174.07,1.2174]
[1730029636628,4.1,174.21,174.07,1.2174]
[1730029636832,2.4462,174.26,174.07,1.2174]
[1730029637132,4.1,174.25,174.07,1.2174]
[1730029639537,2.4462,174.26,174.07,1.2174]
[1730029639931,4.1,174.25,174.08,4.1]
[1730029640133,4.1,174.25,174.07,1.2174]
[1730029646643,0.86088832,174.24,174.07,1.2174]
[1730029649841,21.34,174.25,174.04,2.4955]
[1730029650047,0.86092904,174.24,174.04,2.4955]
[1730029652044,0.86094541,174.23,174.04,2.4955]
[1730029652350,4.1,174.22,174.04,1.2745]
[1730029656149,21.34,174.22,174.04,1.2745]
[1730029656345,21.34,174.22,174.02,1.2173]
[1730029656551,0.86106143,174.21,174.02,1.2173]
[1730029656747,55.86,174.2,174.02,1.2173]
[1730029657047,58.3517,174.2,174.02,1.2173]
[1730029657442,61.28938541,174.2,174.02,1.2173]
[1730029671160,61.28938541,174.2,173.96,2.83731809]
[1730029671353,61.28938541,174.2,173.98,4.1]
[1730029676060,0.86117137,174.19,173.95,4.1]
[1730029676254,0.86117137,174.19,173.96,2.4037]
[1730029676255,4.1,174.18,173.96,2.4037]
[1730029676447,0.86117137,174.17,173.96,2.4037]
[1730029676856,0.86117137,174.17,173.96,3.6301]
[1730029678056,4.1,174.18,173.96,3.6301]
[1730029678260,0.86132659,174.17,173.96,3.6301]
[1730029679762,4.1,174.16,173.96,3.6301]
[1730029691268,61.28938541,174.2,173.96,3.6301]
[1730029691466,17.42085155,174.19,173.96,3.6301]
[1730029691672,0.86130998,174.18,173.96,3.6301]
[1730029692773,16.55954157,174.19,173.96,3.6301]
[1730029693071,0.86126903,174.18,173.96,3.6301]
[1730029696769,16.55954157,174.19,173.96,3.6301]
[1730029696970,0.8612917,174.18,173.96,3.6301]
[1730029697372,16.55954157,174.19,173.96,3.6301]
[1730029697576,0.86129073,174.18,173.96,3.6301]
[1730029697772,0.86129073,174.18,173.96,2.3834]
[1730029697972,13.3208323,174.18,173.96,2.3834]
[1730029698270,0.86129073,174.17,173.96,2.3834]
[1730029698775,4.1,174.16,173.96,2.3834]
[1730029702782,4.1,174.16,173.97,4.1]
[1730029703981,12.45954157,174.19,173.97,4.1]
[1730029704180,4.9613138,174.18,173.97,4.1]
[1730029704474,4.1,174.18,173.97,4.1]
[1730029705581,16.55954157,174.18,173.97,4.1]
[1730029705783,4.1,174.18,173.97,4.1]
[1730029706277,16.56776408,174.18,173.97,4.1]
[1730029706877,12.46776408,174.18,173.97,4.1]
[1730029707073,4.1,174.17,173.97,4.1]
[1730029707282,4.1,174.16,173.97,4.1]
[1730029708677,4.1,174.16,173.96,2.3834]
[1730029708878,4.1,174.16,173.97,4.1]
[1730029710673,4.1,174.16,173.96,2.3834]
[1730029710883,4.1,174.16,173.97,4.1]
[1730029712582,4.1,174.16,173.98,4.1]
[1730029713887,4.1,174.16,173.96,2.3834]
[1730029714192,4.1,174.16,173.97,4.1]
[1730029714588,12.47442571,174.18,173.97,4.1]
[1730029714895,4.1,174.15,173.97,4.1]
[1730029715198,2.4238,174.14,173.97,4.1]
[1730029719604,58.3038,174.14,173.97,4.1]
[1730029725097,58.3038,174.14,173.96,2.3834]
[1730029726909,12.50206261,174.13,173.96,2.3834]
[1730029727208,58.3038,174.14,173.96,2.3834]
[1730029728207,12.50216621,174.13,173.96,2.3834]
[1730029728408,58.3038,174.14,173.96,2.3834]
[1730029729403,12.50353041,174.13,173.96,2.3834]
[1730029729608,12.50353041,174.13,173.94,127.10913859]
[1730029730211,12.50353041,174.13,173.94,1.252]
[1730029730412,29.74353041,174.13,173.94,1.252]
[1730029731006,0.86179077,174.12,173.94,1.252]
[1730029731210,21.34,174.11,173.9,2.4457]
[1730029731409,12.50353041,174.1,173.9,2.4457]
[1730029735111,24.14844743,174.11,173.9,2.4457]
[1730029735714,24.14844743,174.11,173.9,5.35766435]
[1730029735915,24.14844743,174.11,173.9,2.4457]
[1730029736116,12.48391833,174.1,173.9,2.4457]
[1730029736420,12.48391833,174.1,173.9,5.34413601]
[1730029737113,24.14844743,174.11,173.9,5.34413601]
[1730029737511,4.1,174.1,173.9,5.34413601]
[1730029738413,0.86183272,174.09,173.9,5.34413601]
[1730029738813,2.4931,174.08,173.9,5.34413601]
[1730029739313,2.4931,174.08,173.9,2.4457]
[1730029739513,4.1,174.07,173.9,2.4457]
[1730029751029,4.1,174.07,173.86,1.2718]
[1730029751219,4.1,174.07,173.86,5.3718]
[1730029759027,4.1,174.07,173.86,1.2718]
[1730029763231,0.86192153,174.06,173.86,1.2718]
[1730029766135,4.1,174.05,173.86,1.2718]
[1730029766331,2.4931,174.08,173.87,4.1]
[1730029766734,4.1,174.14,173.88,1.05745635]
[1730029767230,4.1,174.14,173.89,1.05717192]
[1730029767435,4.1,174.14,173.9,2.24257192]
[1730029767740,4.1,174.14,173.91,6.35748459]
[1730029768039,4.1,174.14,173.92,1.05708459]
[1730029768226,4.1,174.14,173.92,3.86926026]
[1730029768432,4.1,174.14,173.93,1.05708459]
[1730029768838,4.1,174.14,173.94,1.2628]
[1730029769138,4.1,174.14,173.95,7.02593835]
[1730029770831,4.1,174.14,173.95,2.92593835]
[1730029771041,4.1,174.14,173.96,4.1]
[1730029771339,4.1,174.14,173.96,7.02363763]
[1730029772742,4.1,174.13,173.96,7.02363763]
[1730029777041,2.93768541,174.2,173.96,7.02363763]
[1730029777042,4.1,174.2,173.96,2.92363763]
[1730029777245,4.1,174.2,173.97,5.15684198]
[1730029777443,4.1,174.2,173.98,1.05684198]
[1730029777634,4.1,174.2,173.98,2.26734198]
[1730029777837,4.1,174.2,173.99,2.22334198]
[1730029778034,4.1,174.2,174.0,1.05684198]
[1730029778239,4.1,174.2,174.01,4.1]
[1730029778647,4.1,174.2,174.02,1.1605]
[1730029782338,4.1,174.2,174.03,4.26]
[1730029786350,4.1,174.2,174.04,4.26]
[1730029789148,4.1,174.2,174.05,4.26]
[1730029789358,1.2673,174.19,174.05,4.26]
[1730029789556,1.2673,174.19,174.02,1.1605]
[1730029789749,1.2673,174.19,174.03,4.26]
[1730029793052,1.2673,174.19,174.02,5.4205]
[1730029797058,57.1273,174.19,174.02,5.4205]
[1730029798454,0.86131667,174.18,174.02,5.4205]
[1730029799164,57.1273,174.19,174.02,5.4205]
[1730029799365,0.86130788,174.18,174.02,5.4205]
[1730029799764,57.1273,174.19,174.02,5.4205]
[1730029805683,4.26,174.18,174.02,5.4205]
[1730029806083,4.26,174.17,174.02,5.4205]
[1730029807082,4.26,174.16,174.02,5.4205]
[1730029810392,4.26,174.16,174.03,4.18]
[1730029811793,4.26,174.16,174.02,1.1605]
[1730029812092,1.2045,174.15,174.04,4.18]
[1730029813287,1.2045,174.15,174.05,1.2493]
[1730029813694,57.1273,174.19,174.05,1.2493]
[1730029813989,4.18,174.18,174.06,1.279]
[1730029818988,4.18,174.18,174.05,1.2493]
[1730029824893,57.1273,174.19,174.05,1.2493]
[1730029825090,4.18,174.18,174.05,1.2493]
[1730029825289,4.18,174.18,174.05,4.17382303]
[1730029825490,4.18,174.18,174.05,1.2493]
[1730029825693,4.18,174.18,174.05,4.12695936]
[1730029825905,4.18,174.18,174.05,1.2493]
[1730029829001,4.18,174.18,174.05,4.19257884]
[1730029833205,57.1273,174.19,174.05,4.19257884]
[1730029833401,4.18,174.17,174.05,4.19257884]
[1730029835103,4.18,174.17,174.05,5.4293]
[1730029854322,4.18,174.17,174.05,1.2493]
[1730029854526,1.2822,174.16,174.04,4.14]
[1730029855823,1.2822,174.16,174.02,1.1605]
[1730029856019,1.2822,174.16,174.02,5.3005]
[1730029858724,1.2822,174.16,174.02,1.1605]
[1730029868634,1.2822,174.16,174.02,5.3005]
[1730029871534,1.2822,174.16,174.02,1.1605]
[1730029890860,0.8614703,174.15,173.91,4.1]
[1730029891043,0.8614703,174.15,173.95,2.4463]
[1730029892355,13.77900964,174.16,173.95,2.4463]
[1730029892545,0.86160405,174.15,173.95,2.4463]
[1730029894958,4.1,174.14,173.95,2.4463]
[1730029895156,0.86160405,174.13,173.95,2.4463]
[1730029895352,2.11890405,174.13,173.95,2.4463]
[1730029895559,0.86160405,174.12,173.95,2.4463]
[1730029896346,0.86170573,174.11,173.95,2.4463]
[1730029896555,4.96170573,174.1,173.95,2.4463]
[1730029896747,0.86170573,174.09,173.95,2.4463]
[1730029897063,55.88,174.08,173.95,2.4463]
[1730029898059,1.2543,174.07,173.95,2.4463]
[1730029898464,4.1,174.06,173.95,2.4463]
[1730029899457,4.1,174.05,173.95,2.4463]
[1730029900154,1.2543,174.07,173.95,2.4463]
[1730029900449,4.1,174.06,173.95,2.4463]
[1730029900649,55.88,174.08,173.95,2.4463]
[1730029900947,4.1,174.07,173.96,1.1596]
[1730029901152,4.1,174.06,173.96,1.1596]
[1730029905557,4.1,174.07,173.96,1.1596]
[1730029905758,1.2539,174.14,173.96,1.1596]
[1730029905963,4.1,174.13,173.96,1.1596]
[1730029909265,1.2374,174.15,173.96,1.1596]
[1730029909452,4.1,174.14,173.96,1.1596]
[1730029911762,4.1,174.14,173.97,4.1]
[1730029912060,1.1626,174.13,173.97,4.1]
[1730029917468,1.1626,174.13,173.96,1.1596]
[1730029917765,1.1626,174.13,173.97,4.1]
[1730029918970,4.1,174.14,173.97,4.1]
[1730029920063,4.1,174.13,173.97,4.1]
[1730029920768,4.1,174.12,173.97,4.1]
[1730029921364,4.1,174.11,173.97,4.1]
[1730029922766,55.9,174.17,173.97,4.1]
[1730029922767,4.1,174.12,173.97,4.1]
[1730029924068,4.1,174.15,173.97,4.1]
[1730029924464,4.1,174.15,173.98,1.0]
[1730029928669,4.1,174.15,173.99,4.1]
[1730029928869,4.1,174.15,173.99,6.94270415]
[1730029932487,4.1,174.15,173.99,2.84270415]